fUSD/lending_fUSD_20250226
["ID","MTS","AMOUNT","RATE_DAILY","PERIOD"]
[354526257,1740558639284,-5319.03,0.00043199,14]
[354526259,1740558639293,-500.0,0.00043199,14]
[354526260,1740558639303,-500.0,0.00043199,14]
[354526261,1740558639313,-500.0,0.00043199,14]
[354526262,1740558639322,-500.0,0.00043199,14]
[354526263,1740558639332,-2732.42,0.00043199,14]
[354526264,1740558639343,-3046.34,0.00043199,14]
[354526265,1740558639353,-500.0,0.00043199,14]
[354526266,1740558639362,-500.0,0.00043199,14]
[354526267,1740558639370,-1197.57,0.00043199,14]
[354526268,1740558639379,-2109.6,0.00043199,14]
[354526269,1740558639388,-500.0,0.00043199,14]
[354526270,1740558639397,-500.0,0.00043199,14]
[354526271,1740558639405,-500.0,0.00043199,14]
[354526272,1740558639415,-2435.7,0.00043199,14]
[354526273,1740558639425,-2595.31,0.00043199,14]
[354526274,1740558639434,-500.0,0.00043199,14]
[354526275,1740558639443,-10385.43767906,0.000432,4]
[354526276,1740558639454,-811.351313,0.000432,4]
[354526277,1740558639477,-232.08368694,0.000432,4]
[354526278,1740558639486,-34.16631306,0.00043206,30]
[354526292,1740558640057,-2336.33129923,0.00043199,14]
[354526293,1740558640072,-397.40870077,0.00043199,14]
[354526294,1740558640082,-174.61363914,0.00043206,30]
[354526295,1740558640091,-4519.80179932,0.0004321,120]
[354526296,1740558640103,-33202.31564465,0.0004321,120]
[354526297,1740558640114,-634.1201055,0.0004321,120]
[354526298,1740558640141,-1080.5154265,0.0004321,120]
[354526299,1740558640153,-1290.0,0.0004321,120]
[354526300,1740558640168,-4519.66342177,0.0004321,120]
[354526301,1740558640179,-2610.97439795,0.0004321,120]
[354526302,1740558640190,-466.5999998,0.0004321,120]
[354526303,1740558640208,-792.2440939,0.0004321,120]
[354526322,1740558642700,-854.55749319,0.0004321,120]
[354526323,1740558642733,-2068.76,0.00043199,14]
[354526324,1740558642742,-41793.55874908,0.0004321,120]
[354526325,1740558642751,-1332.97879311,0.00043231,15]
[354526326,1740558642760,-208.7799522,0.0004325,30]
[354526327,1740558642770,-1428.60908488,0.00043278,4]
[354526328,1740558642779,-278.16,0.00043288,30]
[354526329,1740558642789,-208.7799522,0.00043294,30]
[354526330,1740558642799,-208.7799522,0.00043339,30]
[354526331,1740558642809,-2917.36816486,0.00043341,2]
[354526332,1740558642818,-1428.60908488,0.00043353,4]
[354526333,1740558642827,-1332.97879311,0.00043363,15]
[354526334,1740558642836,-2012.5604,0.0004337,47]
[354526335,1740558642845,-208.7799522,0.00043383,30]
[354526336,1740558642855,-208.7799522,0.00043427,30]
[354526337,1740558642864,-208.7799522,0.00043471,30]
[354526338,1740558642873,-8041.8,0.00043473,14]
[354526339,1740558642882,-3276.71,0.00043473,14]
[354526340,1740558642891,-4689.79,0.00043473,14]
[354526341,1740558642901,-3601.12,0.00043473,14]
[354526342,1740558642910,-2574.13,0.00043473,14]
[354526343,1740558642919,-3420.43,0.00043473,14]
[354526344,1740558642928,-5333.07,0.00043473,14]
[354526345,1740558642937,-5425.65,0.00043473,14]
[354526346,1740558642946,-500.0,0.00043473,14]
[354526347,1740558642955,-4439.17,0.00043473,14]
[354526348,1740558642963,-2317.08,0.00043473,14]
[354526349,1740558642973,-4386.17,0.00043473,14]
[354526350,1740558642982,-741.11,0.00043473,14]
[354526351,1740558642990,-2289.86,0.00043473,14]
[354526352,1740558642999,-500.0,0.00043473,14]
[354526353,1740558643009,-4884.75,0.00043473,14]
[354526355,1740558643018,-523.88,0.00043473,14]
[354526357,1740558643027,-2564.94,0.00043473,14]
[354526359,1740558643036,-1347.84,0.00043473,14]
[354526360,1740558643046,-2663.43,0.00043473,14]
[354526361,1740558643055,-3147.43,0.00043473,14]
[354526362,1740558643064,-500.0,0.00043473,14]
[354526363,1740558643073,-500.0,0.00043473,14]
[354526364,1740558643082,-648.76,0.00043473,14]
[354526365,1740558643092,-1259.38,0.00043473,14]
[354526366,1740558643103,-1280.41,0.00043473,14]
[354526367,1740558643114,-5319.03,0.00043473,14]
[354526368,1740558643123,-500.0,0.00043473,14]
[354526369,1740558643132,-500.0,0.00043473,14]
[354526370,1740558643141,-500.0,0.00043473,14]
[354526371,1740558643150,-500.0,0.00043473,14]
[354526373,1740558643159,-2732.42,0.00043473,14]
[354526375,1740558643168,-3046.34,0.00043473,14]
[354526378,1740558643177,-500.0,0.00043473,14]
[354526381,1740558643186,-500.0,0.00043473,14]
[354526384,1740558643195,-1197.57,0.00043473,14]
[354526387,1740558643204,-2109.6,0.00043473,14]
[354526390,1740558643213,-500.0,0.00043473,14]
[354526392,1740558643222,-611.18194826,0.00043473,14]
[354526394,1740558643231,-500.0,0.00043473,14]
[354526397,1740558643240,-2435.7,0.00043473,14]
[354526400,1740558643249,-2595.31,0.00043473,14]
[354526403,1740558643260,-500.0,0.00043473,14]
[354526406,1740558643271,-2733.74,0.00043473,14]
[354526409,1740558643280,-292.92,0.00043491,2]
[354526412,1740558643289,-1332.97879311,0.00043494,15]
[354526415,1740558643298,-208.7799522,0.00043515,30]
[354526417,1740558643308,-208.7799522,0.0004356,30]
[354526419,1740558643317,-208.7799522,0.00043604,30]
[354526421,1740558643327,-1428.60908488,0.00043616,4]
[354526423,1740558643337,-1332.97879311,0.00043626,15]
[354526425,1740558643346,-208.7799522,0.00043648,30]
[354526427,1740558643356,-1428.60908488,0.0004368,4]
[354526429,1740558643365,-208.7799522,0.00043692,30]
[354526431,1740558643374,-1129.1065,0.000437,2]
[354526433,1740558643384,-160.43351904,0.00043704,18]
[354526435,1740558643393,-1428.60908488,0.00043725,4]
[354526437,1740558643402,-544.04353512,0.00043735,12]
[354526439,1740558643412,-5000.0,0.00043735,3]
[354526441,1740558643421,-208.7799522,0.00043737,30]
[354526443,1740558643431,-8041.8,0.00043747,14]
[354526445,1740558643441,-3276.71,0.00043747,14]
[354526447,1740558643451,-4689.79,0.00043747,14]
[354526449,1740558643460,-3601.12,0.00043747,14]
[354526451,1740558643469,-2574.13,0.00043747,14]
[354526453,1740558643479,-3420.43,0.00043747,14]
[354526455,1740558643487,-5333.07,0.00043747,14]
[354526457,1740558643497,-5425.65,0.00043747,14]
[354526459,1740558643506,-500.0,0.00043747,14]
[354526461,1740558643516,-4439.17,0.00043747,14]
[354526463,1740558643525,-2317.08,0.00043747,14]
[354526465,1740558643534,-4386.17,0.00043747,14]
[354526467,1740558643544,-741.11,0.00043747,14]
[354526469,1740558643553,-2289.86,0.00043747,14]
[354526471,1740558643562,-207.56440976,0.00043747,14]
[354526473,1740558643571,-4884.75,0.00043747,14]
[354526475,1740558643580,-523.88,0.00043747,14]
[354526477,1740558643591,-2564.94,0.00043747,14]
[354526479,1740558643601,-1347.84,0.00043747,14]
[354526481,1740558643610,-2663.43,0.00043747,14]
[354526483,1740558643620,-3147.43,0.00043747,14]
[354526485,1740558643630,-500.0,0.00043747,14]
[354526487,1740558643639,-500.0,0.00043747,14]
[354526489,1740558643648,-648.76,0.00043747,14]
[354526491,1740558643658,-1259.38,0.00043747,14]
[354526493,1740558643667,-1280.41,0.00043747,14]
[354526495,1740558643676,-5319.03,0.00043747,14]
[354526497,1740558643685,-500.0,0.00043747,14]
[354526499,1740558643695,-500.0,0.00043747,14]
[354526501,1740558643704,-500.0,0.00043747,14]
[354526503,1740558643713,-500.0,0.00043747,14]
[354526505,1740558643722,-2732.42,0.00043747,14]
[354526507,1740558643733,-3046.34,0.00043747,14]
[354526509,1740558643742,-500.0,0.00043747,14]
[354526511,1740558643751,-500.0,0.00043747,14]
[354526513,1740558643760,-1197.57,0.00043747,14]
[354526515,1740558643770,-2109.6,0.00043747,14]
[354526517,1740558643780,-500.0,0.00043747,14]
[354526519,1740558643789,-500.0,0.00043747,14]
[354526521,1740558643798,-2595.31,0.00043747,14]
[354526523,1740558643808,-2435.7,0.00043747,14]
[354526525,1740558643817,-500.0,0.00043747,14]
[354526527,1740558643826,-2733.74,0.00043747,14]
[354526529,1740558643835,-1428.60908488,0.00043757,4]
[354526531,1740558643844,-1332.97879311,0.00043757,15]
[354526533,1740558643855,-2857.21816976,0.00043767,4]
[354526559,1740558644083,-1000.0,0.00043777,2]
[354526561,1740558644096,-1000.0,0.00043777,2]
[354526563,1740558644106,-1000.0,0.00043777,2]
[354526565,1740558644115,-1000.0,0.00043777,2]
[354526567,1740558644124,-728.01678705,0.00043777,2]
[354526753,1740558646483,-271.98321295,0.00043777,2]
[354526755,1740558646492,-601.10778105,0.00043777,2]
[354526757,1740558646502,-266.19116091,0.00043777,2]
[354526767,1740558646582,-132.70105804,0.00043777,2]
[354526769,1740558646591,-1000.0,0.00043777,2]
[354526771,1740558646601,-840.69894196,0.00043777,2]
[354526775,1740558646641,-159.30105804,0.00043777,2]
[354526777,1740558646652,-1000.0,0.00043777,2]
[354526779,1740558646661,-561.98718246,0.00043777,2]
[354526782,1740558646673,-438.01281754,0.00043777,2]
[354526784,1740558646683,-343.6171072,0.00043777,2]
[354526785,1740558646692,-5714.43633952,0.0004378,4]
[354526787,1740558646702,-208.7799522,0.00043781,30]
[354526789,1740558646712,-1478.19197661,0.00043784,4]
[354526792,1740558646726,-7093.46253267,0.00043784,4]
[354526793,1740558646736,-151.0,0.00043794,14]
[354526795,1740558646747,-1196.68543211,0.000438,120]
[354526797,1740558646757,-1408.02031559,0.000438,120]
[354526801,1740558646778,-296.13443335,0.00043473,14]
[354526803,1740558646789,-1772.62556665,0.00043473,14]
[354526805,1740558646799,-15161.06414395,0.000438,120]
[354526807,1740558646809,-585.53913993,0.000438,120]
[354537926,1740559831711,-151.84,0.00026849,2]
[354537927,1740559831720,-2461.5988292,0.000322,3]
[354537928,1740559831743,-237.4011708,0.000322,3]
[354537929,1740559831755,-150.0,0.00034548,10]
[354537930,1740559831766,-154.0688312,0.00038712,7]
[354537931,1740559831778,-25.4819277,0.00038712,7]
[354537932,1740559831787,-179.5507589,0.00038756,7]
[354537933,1740559831797,-179.5507589,0.00038799,7]
[354537934,1740559831807,-179.5507589,0.00038843,7]
[354537935,1740559831816,-179.5507589,0.00038886,7]
[354537936,1740559831825,-179.5507589,0.0003893,7]
[354537937,1740559831835,-179.5507589,0.00038973,7]
[354537938,1740559831845,-179.5507589,0.00039016,7]
[354537939,1740559831854,-179.5507589,0.0003906,7]
[354537940,1740559831863,-179.5507589,0.00039103,7]
[354537941,1740559831875,-179.5507589,0.00039147,7]
[354537942,1740559831890,-179.5507589,0.0003919,7]
[354537943,1740559831899,-179.5507589,0.00039234,7]
[354537944,1740559831909,-179.5507589,0.00039277,7]
[354537945,1740559831919,-179.5507589,0.00039321,7]
[354537946,1740559831929,-179.5507589,0.00039364,7]
[354537947,1740559831939,-179.5507589,0.00039407,7]
[354537948,1740559831949,-179.5507589,0.00039451,7]
[354537949,1740559831958,-179.5507589,0.00039494,7]
[354537950,1740559831968,-179.5507589,0.00039538,7]
[354537951,1740559831978,-179.5507589,0.00039581,7]
[354537952,1740559831987,-179.5507589,0.00039625,7]
[354537953,1740559831997,-250.0,0.00039665,2]
[354537954,1740559832007,-179.5507589,0.00039668,7]
[354537955,1740559832017,-179.5507589,0.00039712,7]
[354537956,1740559832029,-2000.0,0.00039729,120]
[354537957,1740559832039,-179.5507589,0.00039755,7]
[354537958,1740559832049,-179.5507589,0.00039799,7]
[354537959,1740559832059,-156.59,0.00039831,2]
[354537961,1740559832070,-179.5507589,0.00039842,7]
[354537964,1740559832080,-179.5507589,0.00039885,7]
[354537965,1740559832090,-179.5507589,0.00039929,7]
[354537967,1740559832099,-179.5507589,0.00039972,7]
[354537969,1740559832109,-4407.46,0.0004,120]
[354537971,1740559832120,-179.5507589,0.00040016,7]
[354537973,1740559832129,-179.5507589,0.00040059,7]
[354537975,1740559832139,-179.5507589,0.00040103,7]
[354537977,1740559832150,-179.5507589,0.00040146,7]
[354537979,1740559832160,-179.5507589,0.0004019,7]
[354537981,1740559832169,-156.59,0.00040229,2]
[354537983,1740559832179,-179.5507589,0.00040233,7]
[354537985,1740559832189,-179.5507589,0.00040276,7]
[354537987,1740559832199,-179.5507589,0.0004032,7]
[354537989,1740559832209,-179.5507589,0.00040363,7]
[354537992,1740559832219,-179.5507589,0.00040407,7]
[354537995,1740559832229,-179.5507589,0.0004045,7]
[354537998,1740559832238,-179.5507589,0.00040494,7]
[354538001,1740559832248,-179.5507589,0.00040537,7]
[354538004,1740559832258,-179.5507589,0.00040581,7]
[354538007,1740559832269,-179.5507589,0.00040624,7]
[354538010,1740559832278,-156.59,0.00040627,2]
[354538013,1740559832288,-179.5507589,0.00040667,7]
[354538017,1740559832297,-179.5507589,0.00040711,7]
[354538020,1740559832307,-935.19,0.00040717,2]
[354538023,1740559832316,-1060.0,0.00040725,5]
[354538026,1740559832325,-179.5507589,0.00040754,7]
[354538029,1740559832334,-179.5507589,0.00040798,7]
[354538033,1740559832345,-179.5507589,0.00040841,7]
[354538035,1740559832354,-179.5507589,0.00040885,7]
[354538037,1740559832363,-179.5507589,0.00040928,7]
[354538040,1740559832372,-179.5507589,0.00040972,7]
[354538041,1740559832382,-179.5507589,0.00041015,7]
[354538043,1740559832391,-156.59,0.00041026,2]
[354538044,1740559832400,-179.5507589,0.00041059,7]
[354538045,1740559832410,-179.5507589,0.00041102,30]
[354538046,1740559832419,-179.5507589,0.00041145,30]
[354538047,1740559832428,-179.5507589,0.00041189,30]
[354538048,1740559832438,-179.5507589,0.00041232,30]
[354538049,1740559832447,-179.5507589,0.00041276,30]
[354538050,1740559832456,-179.5507589,0.00041319,30]
[354538051,1740559832465,-179.5507589,0.00041363,30]
[354538052,1740559832475,-179.5507589,0.00041406,30]
[354538053,1740559832484,-156.59,0.00041424,2]
[354538054,1740559832493,-179.5507589,0.0004145,30]
[354538055,1740559832503,-179.5507589,0.00041493,30]
[354538056,1740559832512,-179.5507589,0.00041536,30]
[354538057,1740559832521,-179.5507589,0.0004158,30]
[354538058,1740559832530,-179.5507589,0.00041623,30]
[354538059,1740559832540,-179.5507589,0.00041667,30]
[354538060,1740559832549,-179.5507589,0.0004171,30]
[354538061,1740559832558,-179.5507589,0.00041754,30]
[354538062,1740559832567,-179.5507589,0.00041797,30]
[354538063,1740559832576,-156.59,0.00041822,2]
[354538064,1740559832585,-179.5507589,0.00041841,30]
[354538065,1740559832594,-179.5507589,0.00041884,30]
[354538066,1740559832604,-179.5507589,0.00041927,30]
[354538067,1740559832613,-179.5507589,0.00041971,30]
[354538068,1740559832624,-179.5507589,0.00042014,30]
[354538069,1740559832633,-312.33,0.00042016,120]
[354538070,1740559832642,-1500.0,0.00042039,120]
[354538071,1740559832651,-500.0,0.00042041,2]
[354538072,1740559832660,-179.5507589,0.00042058,30]
[354538073,1740559832672,-200.0,0.0004207,2]
[354538074,1740559832681,-179.5507589,0.00042101,30]
[354538075,1740559832690,-179.5507589,0.00042145,30]
[354538076,1740559832699,-864.8,0.00042157,2]
[354538077,1740559832710,-179.5507589,0.00042188,30]
[354538078,1740559832719,-156.59,0.0004222,2]
[354538079,1740559832729,-179.5507589,0.00042232,30]
[354538080,1740559832738,-179.5507589,0.00042275,30]
[354538081,1740559832747,-179.5507589,0.00042319,30]
[354538082,1740559832757,-1000.0,0.00042324,2]
[354538083,1740559832767,-179.5507589,0.00042362,30]
[354538084,1740559832776,-179.5507589,0.00042405,30]
[354538085,1740559832785,-179.5507589,0.00042449,30]
[354538086,1740559832794,-151.4,0.00042466,30]
[354538087,1740559832804,-179.5507589,0.00042492,30]
[354538088,1740559832813,-179.5507589,0.00042536,30]
[354538089,1740559832822,-179.5507589,0.00042579,30]
[354538090,1740559832831,-156.59,0.00042619,2]
[354538091,1740559832841,-179.5507589,0.00042623,30]
[354538092,1740559832851,-179.5507589,0.00042666,30]
[354538093,1740559832862,-179.5507589,0.0004271,30]
[354538094,1740559832872,-2795.67273838,0.00042718,15]
[354538095,1740559832881,-179.5507589,0.00042753,30]
[354538096,1740559832891,-179.5507589,0.00042796,30]
[354538097,1740559832900,-1173.45,0.00042799,14]
[354538098,1740559832910,-2390.86,0.00042799,14]
[354538099,1740559832919,-22858.30997808,0.000428,30]
[354538100,1740559833441,-408.0,0.000428,30]
[354538101,1740559833461,-6746.5,0.000428,30]
[354538102,1740559833473,-2039.40212491,0.000428,30]
[354538103,1740559833492,-550.62852736,0.000428,30]
[354538104,1740559833508,-1284.422624,0.000428,30]
[354538106,1740559837474,-2795.67273833,0.00042791,15]
[354538107,1740559837484,-29970.57548621,0.000428,30]
[354538108,1740559837495,-36008.590824,0.000428,30]
[354538109,1740559837526,-8305.31693,0.000428,30]
[354538110,1740559837538,-9222.2322,0.000428,30]
[354538111,1740559837551,-871.7117907,0.000428,30]
[354538112,1740559837634,-88608.0,0.000428,30]
[354538113,1740559837687,-5881.96439427,0.000428,30]
[354538114,1740559837698,-4005.47809835,0.000428,30]
[354538119,1740559839669,-2672.48468681,0.000428,30]
[354538120,1740559839780,-21260.3629493,0.000428,30]
[354538121,1740559839856,-33552.32211597,0.000428,30]
[354538134,1740559842558,-995.3076,0.000428,30]
[354538171,1740559845766,-963.02325225,0.000428,30]
[354538172,1740559845777,-79547.70001001,0.000428,30]
[354538173,1740559845804,-4677.4508877,0.000428,30]
[354538174,1740559845815,-3536.28,0.000428,30]
[354538175,1740559845838,-9847.1,0.000428,30]
[354538176,1740559846756,-2685.0,0.000428,30]
[354538177,1740559846768,-7978.27790054,0.000428,30]
[354538178,1740559846798,-75165.01474494,0.000428,30]
[354538179,1740559846809,-814.229,0.00042818,65]
[354538180,1740559846818,-9027.15,0.00042818,2]
[354538181,1740559846827,-179.5507589,0.0004284,30]
[354538182,1740559846837,-2795.67273833,0.00042864,15]
[354538183,1740559846846,-1060.0,0.00042869,30]
[354538184,1740559846856,-776.63,0.00042877,30]
[354538185,1740559846866,-776.03,0.00042877,30]
[354538186,1740559846875,-179.5507589,0.00042883,30]
[354538187,1740559846884,-683.77213274,0.00042899,15]
[354538188,1740559846893,-851.99,0.000429,120]
[354538189,1740559846903,-851.99,0.000429,120]
[354538190,1740559846912,-851.99,0.000429,120]
[354538191,1740559846922,-851.99,0.000429,120]
[354538192,1740559846931,-851.99,0.000429,120]
[354538193,1740559846940,-851.99,0.000429,120]
[354538194,1740559846949,-5147.12686004,0.000429,14]
[354538195,1740559846959,-851.99,0.000429,120]
[354538196,1740559846968,-851.99,0.000429,120]
[354538197,1740559846977,-851.99,0.000429,120]
[354538198,1740559846987,-851.99,0.000429,120]
[354538199,1740559846996,-1122.44086007,0.000429,120]
[354538200,1740559847006,-1122.25,0.000429,120]
[354538201,1740559847015,-1122.25,0.000429,120]
[354538202,1740559847025,-713.5140557,0.00042901,4]
[354538203,1740559847034,-31341.68308318,0.00042918,4]
[354538204,1740559847074,-85729.37000482,0.00042918,4]
[354538205,1740559847084,-1005.38779756,0.00042924,5]
[354538206,1740559847093,-1084.77367951,0.00042924,5]
[354538207,1740559847103,-1133.92429959,0.00042924,5]
[354538208,1740559847113,-179.5507589,0.00042927,30]
[354538209,1740559847122,-500.0,0.00042927,14]
[354538210,1740559847131,-1992.96,0.00042927,14]
[354538211,1740559847141,-150.0,0.00042927,14]
[354538212,1740559847150,-520.53,0.00042927,14]
[354538213,1740559847159,-2795.67273833,0.00042936,15]
[354538214,1740559847170,-683.77213266,0.00042955,15]
[354538215,1740559847179,-179.5507589,0.0004297,30]
[354538216,1740559847189,-344.07,0.00042978,30]
[354538217,1740559847199,-935.19,0.00042981,2]
[354538218,1740559847210,-202.95098844,0.00042988,5]
[354538219,1740559847219,-21999.37612064,0.00042988,27]
[354538220,1740559847238,-11026.43854365,0.00042988,27]
[354538221,1740559847249,-37587.58373185,0.00042988,27]
[354538222,1740559847260,-5963.78336355,0.00042988,27]
[354538272,1740561031779,-219.72,0.00026849,2]
[354538273,1740561031788,-150.0,0.00038663,7]
[354538274,1740561031797,-841.67,0.00039754,2]
[354538275,1740561031807,-250.0,0.00041267,2]
[354538276,1740561031817,-994.763665,0.00041587,2]
[354538277,1740561031839,-765.41038016,0.00041587,2]
[354538278,1740561031851,-2293.13147782,0.00041587,2]
[354538279,1740561031862,-1102.14874176,0.00041587,2]
[354538280,1740561031874,-602.01495821,0.00041587,2]
[354538281,1740561031887,-400.0,0.00041587,2]
[354538282,1740561031899,-772.1419729,0.00041587,2]
[354538283,1740561031941,-6834.64085429,0.00041587,2]
[354538284,1740561031952,-2614.97457783,0.00041587,2]
[354538285,1740561031964,-3653.74999986,0.00041587,2]
[354538286,1740561031975,-3592.79863,0.00041587,2]
[354538287,1740561031986,-274.22474217,0.00041587,2]
[354538288,1740561031995,-250.0,0.00041782,2]
[354538289,1740561032005,-885.07,0.0004184,120]
[354538290,1740561032014,-278.05,0.00041857,120]
[354538291,1740561032023,-153.0,0.00041858,2]
[354538292,1740561032033,-153.0,0.00041858,2]
[354538293,1740561032042,-153.0,0.00041858,2]
[354538294,1740561032052,-153.0,0.00041858,2]
[354538295,1740561032061,-153.0,0.00041858,2]
[354538296,1740561032069,-153.0,0.00041858,2]
[354538297,1740561032079,-500.0,0.00041903,2]
[354538298,1740561032093,-485.27060619,0.00041977,2]
[354538299,1740561032104,-363.36010393,0.00041977,2]
[354538300,1740561032123,-151.36928988,0.00041977,2]
[354538301,1740561032135,-200.0,0.00041977,2]
[354538302,1740561032145,-432.4,0.00042,2]
[354538303,1740561032155,-651.383,0.00042012,63]
[354538305,1740561032167,-173.6,0.00042012,2]
[354538306,1740561032177,-841.67,0.00042018,2]
[354538307,1740561032186,-439.56,0.00042178,30]
[354538308,1740561032198,-439.56,0.00042178,30]
[354538309,1740561032207,-436.12,0.00042178,30]
[354538311,1740561032216,-722.91,0.00042466,30]
[354538313,1740561032225,-547.0177062,0.00042699,15]
[354538315,1740561032234,-4411.8,0.000427,13]
[354538317,1740561032243,-65979.16631021,0.00042735,30]
[354538319,1740561032253,-547.01770612,0.00042766,15]
[354538321,1740561032262,-1124.56,0.00042798,14]
[354538323,1740561032271,-2291.24,0.00042798,14]
[354538325,1740561032281,-500.0,0.00042798,14]
[354538327,1740561032291,-2337.72,0.00042799,14]
[354538329,1740561032300,-500.0,0.00042799,14]
[354538330,1740561032309,-500.0,0.00042799,14]
[354538332,1740561032319,-1835.47,0.00042799,14]
[354538334,1740561032328,-1000.0,0.00042799,14]
[354538336,1740561032338,-500.0,0.00042799,14]
[354538338,1740561032347,-1783.31,0.00042799,14]
[354538340,1740561032358,-500.0,0.00042799,14]
[354538342,1740561032367,-2950.35,0.00042799,14]
[354538344,1740561032376,-500.0,0.00042799,14]
[354538346,1740561032385,-1315.07,0.00042799,14]
[354538348,1740561032394,-2722.7,0.00042799,14]
[354538350,1740561032403,-3232.04,0.00042799,14]
[354538353,1740561032412,-2582.92,0.00042799,14]
[354538356,1740561032421,-2930.22,0.00042799,14]
[354538359,1740561032430,-1808.66,0.00042799,14]
[354538361,1740561032439,-500.0,0.00042799,14]
[354538363,1740561032448,-500.0,0.00042799,14]
[354538365,1740561032458,-2455.73,0.00042799,14]
[354538368,1740561032467,-1752.81,0.00042799,14]
[354538371,1740561032476,-1977.26,0.00042799,14]
[354538373,1740561032485,-1793.34,0.00042799,14]
[354538375,1740561032494,-1491.7,0.00042799,14]
[354538377,1740561032503,-1276.94,0.00042799,14]
[354538379,1740561032512,-1984.82,0.00042799,14]
[354538381,1740561032521,-1525.48,0.00042799,14]
[354538383,1740561032531,-2834.58,0.00042799,14]
[354538385,1740561032539,-1878.36,0.00042799,14]
[354538387,1740561032548,-681.95,0.00042799,14]
[354538388,1740561032558,-2032.91,0.00042799,14]
[354538390,1740561032567,-1864.52,0.00042799,14]
[354538392,1740561032576,-500.0,0.00042799,14]
[354538394,1740561032585,-929.63,0.00042799,14]
[354538396,1740561032594,-1850.24,0.00042799,14]
[354538398,1740561032603,-2114.05,0.00042799,14]
[354538400,1740561032613,-1109.83,0.00042799,14]
[354538402,1740561032622,-500.0,0.00042799,14]
[354538404,1740561032631,-545.89,0.00042799,14]
[354538406,1740561032640,-1663.38,0.00042799,14]
[354538408,1740561032649,-1824.67,0.00042799,14]
[354538410,1740561032658,-1380.04,0.00042799,14]
[354538412,1740561032667,-505.81441927,0.00042799,14]
[354538414,1740561032676,-1548.53,0.00042799,14]
[354538416,1740561032685,-1463.93,0.00042799,14]
[354538418,1740561032695,-500.0,0.00042799,14]
[354538420,1740561032703,-2200.39,0.00042799,14]
[354538422,1740561032713,-1799.49,0.00042799,14]
[354538424,1740561032722,-3115.08,0.00042799,14]
[354538426,1740561032731,-547.13,0.00042799,14]
[354538428,1740561032741,-4103.56,0.00042799,14]
[354538429,1740561032750,-2867.12,0.00042799,14]
[354538431,1740561032760,-798.73,0.00042799,14]
[354538433,1740561032769,-2992.88,0.00042799,14]
[354538435,1740561032779,-2625.81,0.00042799,14]
[354538437,1740561032788,-1070.3,0.00042799,14]
[354538439,1740561032797,-4747.45,0.00042799,14]
[354538441,1740561032807,-1595.42,0.00042799,14]
[354538443,1740561032816,-1773.07,0.00042799,14]
[354538445,1740561032825,-4809.48,0.00042799,14]
[354538447,1740561032834,-634.23,0.00042799,14]
[354538449,1740561032842,-500.0,0.00042799,14]
[354538451,1740561032851,-500.0,0.00042799,14]
[354538453,1740561032862,-685.91,0.00042799,14]
[354538455,1740561032871,-890.46,0.00042799,14]
[354538456,1740561032881,-2107.9,0.00042799,14]
[354538458,1740561032890,-4016.46,0.00042799,14]
[354538460,1740561032899,-2874.21,0.00042799,14]
[354538462,1740561032908,-500.0,0.00042799,14]
[354538464,1740561032918,-2113.4,0.00042799,14]
[354538466,1740561032927,-3331.46,0.00042799,14]
[354538468,1740561032937,-1238.42,0.00042799,14]
[354538470,1740561032946,-2714.9,0.00042799,14]
[354538472,1740561032955,-3992.75,0.00042799,14]
[354538474,1740561032968,-2754.01,0.00042799,14]
[354538476,1740561032982,-500.0,0.00042799,14]
[354538478,1740561032993,-4474.91,0.00042799,14]
[354538480,1740561033002,-1944.26,0.00042799,14]
[354538482,1740561033012,-917.21,0.00042799,14]
[354538484,1740561033022,-2354.18,0.00042799,14]